bitfinex/quotes_BTCUSD_20240831
["timestamp","ask_amount","ask_price","bid_price","bid_amount"]
[1725086112556,0.002,59467.0,59444.0,0.117756]
[1725086112764,0.117749,59449.0,59445.0,0.199054]
[1725086114677,0.1,59456.0,59445.0,0.199054]
[1725086114678,0.11775,59448.0,59445.0,0.0813]
[1725086115128,0.11775,59448.0,59445.0,0.0943]
[1725086115559,0.11775,59448.0,59445.0,0.1083]
[1725086115772,0.11775,59448.0,59445.0,0.0953]
[1725086115956,0.11775,59448.0,59445.0,0.0813]
[1725086116207,0.11775,59448.0,59445.0,0.0953]
[1725086117080,0.11775,59448.0,59445.0,0.1093]
[1725086117763,0.117752,59447.0,59445.0,0.1093]
[1725086118418,0.35326,59446.0,59445.0,0.1093]
[1725086118626,0.35326,59446.0,59445.0,0.0953]
[1725086119058,0.117753,59446.0,59445.0,0.0953]
[1725086119280,0.35326,59446.0,59445.0,0.0953]
[1725086119474,0.35326,59446.0,59445.0,0.1093]
[1725086119896,0.35326,59446.0,59445.0,0.0953]
[1725086120447,0.35326,59446.0,59445.0,0.1093]
[1725086124740,0.35326,59446.0,59445.0,0.1101998]
[1725086125548,0.35326,59446.0,59445.0,0.0101998]
[1725086127454,0.588767,59446.0,59445.0,0.0101998]
[1725086131556,0.59394208,59446.0,59445.0,0.0101998]
[1725086136802,0.35843508,59446.0,59445.0,0.0101998]
[1725086137209,0.12292808,59446.0,59445.0,0.0101998]
[1725086137619,0.12374608,59446.0,59445.0,0.0101998]
[1725086137858,0.35925308,59446.0,59445.0,0.0101998]
[1725086141110,0.35925308,59446.0,59445.0,0.0959998]
[1725086142259,0.35925308,59446.0,59445.0,0.14655951]
[1725086143361,0.35925308,59446.0,59445.0,0.14656252]
[1725086143562,0.35925308,59446.0,59445.0,0.0959998]
[1725086144168,0.35925308,59446.0,59445.0,0.14656252]
[1725086149850,0.35925308,59446.0,59445.0,0.06076252]
[1725086151256,0.35925308,59446.0,59445.0,0.0101998]
[1725086157170,0.59476008,59446.0,59445.0,0.0101998]
[1725086168062,0.83026708,59446.0,59445.0,0.06080064]
[1725086168274,0.83026708,59446.0,59445.0,0.0101998]
[1725086169105,1.15854376,59446.0,59445.0,0.0101998]
[1725086169792,1.15854376,59446.0,59445.0,0.0008998]
[1725086170199,1.15854376,59446.0,59445.0,0.0108998]
[1725086170406,1.15954376,59446.0,59445.0,0.0218998]
[1725086170610,1.15954376,59446.0,59445.0,0.0108998]
[1725086170837,1.18426683,59446.0,59445.0,0.0108998]
[1725086171233,1.28526683,59446.0,59445.0,0.0218998]
[1725086172593,1.28326683,59446.0,59445.0,0.0008998]
[1725086172808,1.28426683,59446.0,59445.0,0.0118998]
[1725086173476,1.28626683,59446.0,59445.0,0.0008998]
[1725086173686,1.28526683,59446.0,59445.0,0.0008998]
[1725086173897,1.28826683,59446.0,59445.0,0.0008998]
[1725086174333,2.08169462,59446.0,59445.0,0.0008998]
[1725086178734,2.08369462,59446.0,59445.0,0.0008998]
[1725086179428,2.08169462,59446.0,59445.0,0.0008998]
[1725086179649,2.25024626,59446.0,59445.0,0.0008998]
[1725086180126,2.08169462,59446.0,59445.0,0.0008998]
[1725086181704,2.08369462,59446.0,59445.0,0.0008998]
[1725086181919,2.08169462,59446.0,59445.0,0.0008998]
[1725086185785,2.08369462,59446.0,59445.0,0.0008998]
[1725086188775,2.08169462,59446.0,59445.0,0.0008998]
[1725086188953,2.08369462,59446.0,59445.0,0.0008998]
[1725086202008,1.99749462,59446.0,59445.0,0.0008998]
[1725086204439,1.99549462,59446.0,59445.0,0.0008998]
[1725086206098,1.99749462,59446.0,59445.0,0.0008998]
[1725086206509,1.99549462,59446.0,59445.0,0.0008998]
[1725086206718,1.99749462,59446.0,59445.0,0.0008998]
[1725086207543,2.23300162,59446.0,59445.0,0.0008998]
[1725086208354,2.20345625,59446.0,59445.0,0.0008998]
[1725086209596,2.28655625,59446.0,59445.0,0.0008998]
[1725086218633,2.28737425,59446.0,59445.0,0.0008998]
[1725086221030,2.31037425,59446.0,59445.0,0.0008998]
[1725086221705,2.47892589,59446.0,59445.0,0.0008998]
[1725086221943,2.31037425,59446.0,59445.0,0.0008998]
[1725086223677,2.31537425,59446.0,59445.0,0.0008998]
[1725086224339,2.23227425,59446.0,59445.0,0.0008998]
[1725086225266,2.22570457,59446.0,59445.0,0.0008998]
[1725086226161,2.21870457,59446.0,59445.0,0.0008998]
[1725086226388,2.19770457,59446.0,59445.0,0.0008998]
[1725086229691,1.96019757,59446.0,59445.0,0.0008998]
[1725086230141,1.96219757,59446.0,59445.0,0.0008998]
[1725086230559,1.96019757,59446.0,59445.0,0.0008998]
[1725086239599,1.96677192,59446.0,59445.0,0.0008998]
[1725086252314,1.96877192,59446.0,59445.0,0.0008998]
[1725086253836,1.96677192,59446.0,59445.0,0.0008998]
[1725086254703,1.96377192,59446.0,59445.0,0.0008998]
[1725086254920,2.20627892,59446.0,59445.0,0.0018998]
[1725086255128,2.21227892,59446.0,59445.0,0.0028998]
[1725086255371,2.20527892,59446.0,59445.0,0.0018998]
[1725086255582,2.20627892,59446.0,59445.0,0.0018998]
[1725086256243,2.20570457,59446.0,59445.0,0.0028998]
[1725086256683,1.88089258,59446.0,59445.0,0.0028998]
[1725086256952,1.99864558,59446.0,59445.0,0.0028998]
[1725086257383,2.23415258,59446.0,59445.0,0.0028998]
[1725086259135,1.99864558,59446.0,59445.0,0.0028998]
[1725086259575,2.23415258,59446.0,59445.0,0.0028998]
[1725086259801,1.99864558,59446.0,59445.0,0.0028998]
[1725086260040,1.76313858,59446.0,59445.0,0.0028998]
[1725086260533,1.99864558,59446.0,59445.0,0.0028998]
[1725086273645,1.99864558,59446.0,59445.0,0.0883998]
[1725086273646,1.99664558,59446.0,59445.0,0.0883998]
[1725086273865,1.99864558,59446.0,59445.0,0.0883998]
[1725086275385,1.99664558,59446.0,59445.0,0.0883998]
[1725086281094,1.76113858,59446.0,59445.0,0.0883998]
[1725086281357,1.76113858,59446.0,59445.0,0.0873998]
[1725086281358,1.75513858,59446.0,59445.0,0.0873998]
[1725086281583,1.75713858,59446.0,59445.0,0.0873998]
[1725086281799,1.75013858,59446.0,59445.0,0.0863998]
[1725086282223,1.75213858,59446.0,59445.0,0.0863998]
[1725086288940,1.75902031,59446.0,59445.0,0.0008998]
[1725086289193,1.57929633,59446.0,59445.0,0.0008998]
[1725086289404,1.81280333,59446.0,59445.0,0.0008998]
[1725086290023,1.81480333,59446.0,59445.0,0.0008998]
[1725086290239,1.81280333,59446.0,59445.0,0.0008998]
[1725086290454,1.81480333,59446.0,59445.0,0.0008998]
[1725086291537,1.83904556,59446.0,59445.0,0.0008998]
[1725086292391,1.83704556,59446.0,59445.0,0.0008998]
[1725086294429,1.81280333,59446.0,59445.0,0.0008998]
[1725086296483,1.48872123,59446.0,59445.0,0.0008998]
[1725086311752,1.49072123,59446.0,59445.0,0.0008998]
[1725086317859,1.48872123,59446.0,59445.0,0.0008998]
[1725086321863,1.49072123,59446.0,59445.0,0.0008998]
[1725086326309,1.48872123,59446.0,59445.0,0.0008998]
[1725086329578,1.49072123,59446.0,59445.0,0.0008998]
[1725086330633,1.51507275,59446.0,59445.0,0.0008998]
[1725086331089,1.68362439,59446.0,59445.0,0.0008998]
[1725086332000,1.51507275,59446.0,59445.0,0.0008998]
[1725086332231,1.53807275,59446.0,59445.0,0.0008998]
[1725086333734,1.77398233,59446.0,59445.0,0.0008998]
[1725086333937,1.78011678,59446.0,59445.0,0.0008998]
[1725086334272,1.54460978,59446.0,59445.0,0.0008998]
[1725086335268,1.54260978,59446.0,59445.0,0.0008998]
[1725086335712,1.54460978,59446.0,59445.0,0.0008998]
[1725086351659,1.53607275,59446.0,59445.0,0.0008998]
[1725086351887,1.51307275,59446.0,59445.0,0.0008998]
[1725086352748,1.51307275,59446.0,59445.0,0.0828998]
[1725086353625,1.26005015,59446.0,59445.0,0.0828998]
[1725086355759,2.53425015,59446.0,59445.0,0.0828998]
[1725086367874,2.46804624,59446.0,59445.0,0.0828998]
[1725086368772,2.46804624,59446.0,59445.0,0.0008998]
[1725086369017,2.47689608,59446.0,59445.0,0.0008998]
[1725086369230,2.49989608,59446.0,59445.0,0.0008998]
[1725086369672,2.49789608,59446.0,59445.0,0.0008998]
[1725086370125,2.49589608,59446.0,59445.0,0.0008998]
[1725086370342,2.50089608,59446.0,59445.0,0.0008998]
[1725086371444,2.50589608,59446.0,59445.0,0.0008998]
[1725086372080,2.50089608,59446.0,59445.0,0.0008998]
[1725086372300,2.50589608,59446.0,59445.0,0.0008998]
[1725086374034,2.67444772,59446.0,59445.0,0.0008998]
[1725086375531,2.50589608,59446.0,59445.0,0.0008998]
[1725086383246,2.74640308,59446.0,59445.0,0.0008998]
[1725086383719,2.51089608,59446.0,59445.0,0.0008998]
[1725086384364,2.74640308,59446.0,59445.0,0.0008998]
[1725086384582,2.51089608,59446.0,59445.0,0.0008998]
[1725086384807,2.67944772,59446.0,59445.0,0.0008998]
[1725086385659,2.91495472,59446.0,59445.0,0.0008998]
[1725086385874,1.061889,59440.0,59439.0,0.0008998]
[1725086386089,1.161889,59440.0,59439.0,0.0008998]
[1725086386302,1.16640307,59440.0,59439.0,0.0008998]
[1725086386723,1.19280751,59440.0,59439.0,0.0008998]
[1725086387135,1.19280751,59440.0,59439.0,0.0028998]
[1725086387787,1.19280751,59440.0,59439.0,0.0038998]
[1725086388695,1.19080751,59440.0,59439.0,0.0028998]
[1725086388904,1.19180751,59440.0,59439.0,0.0028998]
[1725086389324,1.21480751,59440.0,59439.0,0.0028998]
[1725086389978,1.21480751,59440.0,59439.0,0.0008998]
[1725086393513,1.36054006,59440.0,59439.0,0.0008998]
[1725086394155,1.21480751,59440.0,59439.0,0.0008998]
[1725086395545,1.23964002,59440.0,59439.0,0.0008998]
[1725086411304,1.21664002,59440.0,59439.0,0.0857998]
[1725086412636,1.19023558,59440.0,59439.0,0.0857998]
[1725086413245,1.19709867,59440.0,59439.0,0.0857998]
[1725086416606,1.19709867,59440.0,59439.0,0.0008998]
[1725086417058,1.19909867,59440.0,59439.0,0.0008998]
[1725086417988,1.19609867,59440.0,59439.0,0.0008998]
[1725086418219,1.20009867,59440.0,59439.0,0.0008998]
[1725086418449,1.22550279,59440.0,59439.0,0.0008998]
[1725086418675,1.23150279,59440.0,59439.0,0.0008998]
[1725086418901,1.22850279,59440.0,59439.0,0.0008998]
[1725086419381,1.23150279,59440.0,59439.0,0.0008998]
[1725086420527,1.22950279,59440.0,59439.0,0.0008998]
[1725086427541,1.23150279,59440.0,59439.0,0.0008998]
[1725086428615,1.059961,59436.0,59435.0,0.0666996]
[1725086428823,1.159961,59436.0,59435.0,0.0666996]
[1725086429053,1.16447544,59436.0,59435.0,0.0666996]
[1725086429927,1.16447544,59436.0,59435.0,0.0676996]
[1725086430376,1.16447544,59436.0,59435.0,0.0686996]
[1725086431660,1.16447544,59436.0,59435.0,0.0676996]
[1725086431875,1.16563312,59436.0,59435.0,0.0666996]
[1725086432083,1.16863312,59436.0,59435.0,0.0666996]
[1725086432513,1.16763312,59436.0,59435.0,0.0666996]
[1725086432936,1.16863312,59436.0,59435.0,0.0666996]
[1725086433830,1.16813312,59436.0,59435.0,0.0666996]
[1725086434276,1.16813312,59436.0,59435.0,0.0675994]
[1725086457095,1.14217146,59436.0,59435.0,0.0675994]
[1725086459970,1.14217146,59436.0,59435.0,0.0008998]
[1725086464934,1.40381516,59436.0,59435.0,0.0008998]
[1725086465177,1.061997,59434.0,59433.0,0.0008998]
[1725086465424,1.397552,59434.0,59433.0,0.0008998]
[1725086465629,1.397552,59434.0,59431.0,0.0008998]
[1725086465630,1.297596,59432.0,59431.0,0.0008998]
[1725086465848,1.397596,59432.0,59431.0,0.0008998]
[1725086466045,1.40314529,59432.0,59431.0,0.0008998]
[1725086466475,1.41001153,59432.0,59431.0,0.0008998]
[1725086467065,1.40801153,59432.0,59431.0,0.0008998]
[1725086467302,1.41001153,59432.0,59431.0,0.0008998]
[1725086467731,1.40801153,59432.0,59431.0,0.0008998]
[1725086468379,1.40801153,59432.0,59431.0,0.0038998]
[1725086468581,1.40801153,59432.0,59431.0,0.0068998]
[1725086468754,2.68221153,59432.0,59431.0,0.0038998]
[1725086468972,2.68221153,59432.0,59431.0,0.0008998]
[1725086469414,2.70668616,59432.0,59431.0,0.0018998]
[1725086469827,2.70868616,59432.0,59431.0,0.0018998]
[1725086470684,2.70868616,59432.0,59431.0,0.0028998]
[1725086470863,2.47312316,59432.0,59431.0,0.0028998]
[1725086475843,2.58127998,59432.0,59431.0,0.0028998]
[1725086476273,2.47312316,59432.0,59431.0,0.0028998]
[1725086478724,2.47812316,59432.0,59431.0,0.0028998]
[1725086478924,2.50112316,59432.0,59431.0,0.0028998]
[1725086479276,2.73668616,59432.0,59431.0,0.0028998]
[1725086480393,1.297684,59428.0,59427.0,0.0008998]
[1725086480607,1.162105,59428.0,59427.0,0.0008998]
[1725086480816,1.16765251,59428.0,59427.0,0.0008998]
[1725086481265,1.19406313,59428.0,59427.0,0.0008998]
[1725086482182,1.20006313,59428.0,59427.0,0.0018998]
[1725086483313,1.20606313,59428.0,59427.0,0.0018998]
[1725086483546,1.08627413,59428.0,59427.0,0.0018998]
[1725086484262,1.20406313,59428.0,59427.0,0.0018998]
[1725086488477,1.25759464,59428.0,59427.0,0.0018998]
[1725086489843,0.353392,59424.0,59423.0,0.0008998]
[1725086490066,0.688987,59424.0,59423.0,0.0008998]
[1725086490290,0.93013328,59424.0,59423.0,0.0008998]
[1725086490537,1.30101123,59424.0,59423.0,0.0008998]
[1725086491601,1.30301123,59424.0,59423.0,0.0008998]
[1725086491816,1.16772828,59424.0,59423.0,0.0008998]
[1725086492662,1.16872828,59424.0,59423.0,0.0008998]
[1725086494021,1.19402289,59424.0,59423.0,0.0008998]
[1725086495638,2.46822289,59424.0,59423.0,0.0008998]
[1725086497227,2.46322289,59424.0,59423.0,0.0008998]
[1725086500397,2.63177453,59424.0,59423.0,0.0008998]
[1725086505234,2.45822289,59424.0,59423.0,0.0008998]
[1725086511237,2.45322289,59424.0,59423.0,0.0008998]
[1725086512821,2.45404089,59424.0,59423.0,0.0008998]
[1725086516676,2.44904089,59424.0,59423.0,0.0008998]
[1725086516902,2.44904089,59424.0,59423.0,0.0935998]
[1725086523456,2.44404089,59424.0,59423.0,0.0935998]
[1725086530475,2.44404089,59424.0,59423.0,0.1677998]
[1725086531273,2.35124389,59424.0,59423.0,0.1677998]
[1725086531686,2.46904089,59424.0,59423.0,0.1677998]
[1725086534147,2.46904089,59424.0,59423.0,0.0750998]
[1725086536877,2.46404089,59424.0,59423.0,0.0750998]
[1725086540656,2.46404089,59424.0,59423.0,0.0008998]
[1725086541305,2.46304089,59424.0,59423.0,0.0008998]
[1725086542186,2.46604089,59424.0,59423.0,0.0008998]
[1725086542836,2.70163589,59424.0,59423.0,0.0008998]
[1725086547610,2.70850307,59424.0,59423.0,0.0008998]
[1725086549014,2.87705471,59424.0,59423.0,0.0008998]
[1725086551814,2.70850307,59424.0,59423.0,0.0008998]
[1725086556481,2.70850307,59424.0,59423.0,0.0691998]
[1725086562332,2.70850307,59424.0,59423.0,0.0008998]
[1725086569760,2.70850307,59424.0,59423.0,0.0697998]
[1725086572606,2.62253855,59424.0,59423.0,0.0697998]
[1725086577495,2.79109019,59424.0,59423.0,0.0697998]
[1725086580493,2.62253855,59424.0,59423.0,0.0697998]
[1725086590036,2.37790807,59424.0,59423.0,0.0697998]
[1725086590664,2.61350307,59424.0,59423.0,0.0697998]
[1725086591947,2.71350307,59424.0,59423.0,0.0697998]
[1725086592841,1.060263,59419.0,59418.0,0.0839]
[1725086593057,1.160263,59419.0,59418.0,0.0839]
[1725086593271,1.16578658,59419.0,59418.0,0.0839]
[1725086593688,1.19219982,59419.0,59418.0,0.0839]
[1725086594137,1.19219982,59419.0,59418.0,0.0869]
[1725086594577,1.3114198,59419.0,59418.0,0.0869]
[1725086594812,1.3114198,59419.0,59418.0,0.0899]
[1725086595486,1.3114198,59419.0,59418.0,0.0869]
[1725086595689,1.3114198,59419.0,59418.0,0.003]
[1725086595903,1.3114198,59419.0,59418.0,0.0734]
[1725086596196,1.3114198,59419.0,59418.0,0.0704]
[1725086596625,2.5856198,59419.0,59418.0,0.0704]
[1725086596838,2.5856198,59419.0,59418.0,0.071218]
[1725086603660,2.8212338,59419.0,59418.0,0.071218]
[1725086604316,2.8222338,59419.0,59418.0,0.071218]
[1725086606295,2.8232338,59419.0,59418.0,0.071218]
[1725086608096,2.70401382,59419.0,59418.0,0.071218]
[1725086608535,2.46839982,59419.0,59418.0,0.071218]
[1725086611235,2.35059282,59419.0,59418.0,0.071218]
[1725086611493,2.46839982,59419.0,59418.0,0.071218]
[1725086627167,2.46739982,59419.0,59418.0,0.071218]
[1725086627393,2.47039982,59419.0,59418.0,0.071218]
[1725086627596,2.46939982,59419.0,59418.0,0.071218]
[1725086627872,2.47339982,59419.0,59418.0,0.071218]
[1725086628761,2.47039982,59419.0,59418.0,0.071218]
[1725086628876,2.47339982,59419.0,59418.0,0.071218]
[1725086632781,2.47421882,59419.0,59418.0,0.071218]
[1725086633445,2.68299326,59419.0,59418.0,0.071218]
[1725086633659,2.70599326,59419.0,59418.0,0.071218]
[1725086640657,2.47037926,59419.0,59418.0,0.071218]
[1725086642313,2.47037926,59419.0,59418.0,0.153918]
[1725086649941,2.44237926,59419.0,59418.0,0.153918]
[1725086655329,2.44237926,59419.0,59418.0,0.071218]
[1725086655570,2.6109309,59419.0,59418.0,0.071218]
[1725086655814,2.6109309,59419.0,59418.0,0.000818]
[1725086656040,2.6339309,59419.0,59418.0,0.000818]
[1725086656267,2.6389309,59419.0,59418.0,0.000818]
[1725086658598,2.8745449,59419.0,59418.0,0.000818]
[1725086658806,2.6389309,59419.0,59418.0,0.000818]
[1725086659481,2.8745449,59419.0,59418.0,0.000818]
[1725086662954,2.6389309,59419.0,59418.0,0.000818]
[1725086663626,2.8745449,59419.0,59418.0,0.000818]
[1725086664143,2.6389309,59419.0,59418.0,0.000818]
[1725086664641,2.8745449,59419.0,59418.0,0.000818]
[1725086664886,2.6389309,59419.0,59418.0,0.000818]
[1725086665358,2.8745449,59419.0,59418.0,0.000818]
[1725086666807,2.6389309,59419.0,59418.0,0.000818]
[1725086667489,2.8745449,59419.0,59418.0,0.000818]
[1725086677124,2.88141382,59419.0,59418.0,0.000818]
[1725086680572,2.71286218,59419.0,59418.0,0.074018]
[1725086691584,2.47224818,59419.0,59418.0,0.074018]
[1725086691792,2.46537926,59419.0,59418.0,0.161218]
[1725086695331,2.47224824,59419.0,59418.0,0.161218]
[1725086700025,2.46924824,59419.0,59418.0,0.161218]
[1725086700326,2.47524824,59419.0,59418.0,0.162218]
[1725086700727,2.47124824,59419.0,59418.0,0.162218]
[1725086700926,2.46524824,59419.0,59418.0,0.161218]
[1725086701148,2.47224824,59419.0,59418.0,0.162218]
[1725086701361,2.47824824,59419.0,59418.0,0.162218]
[1725086701925,2.47124824,59419.0,59418.0,0.162218]
[1725086702833,2.47824824,59419.0,59418.0,0.162218]
[1725086705667,2.47137926,59419.0,59418.0,0.162218]
[1725086709916,2.44837926,59419.0,59418.0,0.162218]
[1725086713862,2.25147381,59419.0,59418.0,0.162218]
[1725086714535,2.48708781,59419.0,59418.0,0.162218]
[1725086716481,2.48708781,59419.0,59418.0,0.075018]
[1725086723945,2.73883282,59419.0,59418.0,0.075018]
[1725086725785,2.90738446,59419.0,59418.0,0.075018]
[1725086729589,2.90738446,59419.0,59418.0,0.001818]
[1725086734886,2.91238446,59419.0,59418.0,0.001818]
[1725086735141,2.91925345,59419.0,59418.0,0.001818]
[1725086738390,2.75070181,59419.0,59418.0,0.001818]
[1725086748109,2.75070181,59419.0,59418.0,0.068518]
[1725086748110,2.56124804,59419.0,59418.0,0.068518]
[1725086748327,2.56671656,59419.0,59418.0,0.068518]
[1725086751361,2.59313126,59419.0,59418.0,0.068518]
[1725086759509,2.59313126,59419.0,59418.0,0.069377]
[1725086765209,2.58613126,59419.0,59418.0,0.069377]
[1725086765429,2.59713126,59419.0,59418.0,0.069377]
[1725086765642,2.58613126,59419.0,59418.0,0.069377]
[1725086766065,2.59713126,59419.0,59418.0,0.069377]
[1725086766750,2.58013126,59419.0,59418.0,0.068377]
[1725086767171,2.60413126,59419.0,59418.0,0.068377]
[1725086767392,2.33821583,59419.0,59418.0,0.068377]
[1725086767610,2.32821583,59419.0,59418.0,0.068377]
[1725086767819,2.33821583,59419.0,59418.0,0.068377]
[1725086768249,2.33134684,59419.0,59418.0,0.068377]
[1725086768928,2.31734684,59419.0,59418.0,0.068377]
[1725086769161,2.32834684,59419.0,59418.0,0.068377]
[1725086770454,2.09273284,59419.0,59418.0,0.068377]
[1725086771307,2.09273284,59419.0,59418.0,0.154277]
[1725086772850,2.06473284,59419.0,59418.0,0.154277]
[1725086776344,0.824691,59416.0,59415.0,0.81532475]
[1725086776554,0.93015812,59416.0,59415.0,0.81532475]
[1725086777712,0.93715812,59416.0,59415.0,0.81532475]
[1725086779195,0.94515812,59416.0,59415.0,0.81532475]
[1725086779416,0.94515812,59416.0,59415.0,0.96992475]
[1725086780054,1.0423973,59416.0,59415.0,0.96992475]
[1725086780266,0.94515812,59416.0,59415.0,0.96992475]
[1725086782449,1.20573309,59416.0,59415.0,0.96992475]
[1725086784177,1.17726586,59416.0,59415.0,0.96992475]
[1725086786796,1.17726586,59416.0,59415.0,0.88402475]
[1725086788174,1.20026586,59416.0,59415.0,0.88402475]
[1725086793967,1.7060435,59416.0,59415.0,0.81532475]
[1725086794196,1.7060435,59416.0,59415.0,0.1745729]
[1725086794423,1.72367135,59416.0,59415.0,0.1745729]
[1725086797830,1.065371,59413.0,59412.0,0.0008998]
[1725086798045,1.188371,59413.0,59412.0,0.0008998]
[1725086798265,1.19372828,59413.0,59412.0,0.0008998]
[1725086799182,1.42936628,59413.0,59412.0,0.0008998]
[1725086799400,1.43436628,59413.0,59412.0,0.0008998]
[1725086799664,1.60691792,59413.0,59412.0,0.0008998]
[1725086800345,1.60791792,59413.0,59412.0,0.0008998]
[1725086800761,1.68601792,59413.0,59412.0,0.0008998]
[1725086801250,1.67801792,59413.0,59412.0,0.0008998]
[1725086801473,1.68301792,59413.0,59412.0,0.0008998]
[1725086801690,1.67801792,59413.0,59412.0,0.0008998]
[1725086801905,1.70443661,59413.0,59412.0,0.0008998]
[1725086802134,1.63433661,59413.0,59412.0,0.0008998]
[1725086802596,1.64333661,59413.0,59412.0,0.0008998]
[1725086802829,1.65133661,59413.0,59412.0,0.0008998]
[1725086803060,1.64233661,59413.0,59412.0,0.0008998]
[1725086803284,1.64433661,59413.0,59412.0,0.0008998]
[1725086803734,1.65233661,59413.0,59412.0,0.0008998]
[1725086804842,2.50310423,59413.0,59412.0,0.0008998]
[1725086807599,2.65980423,59413.0,59412.0,0.0008998]
[1725086807817,2.66681661,59413.0,59412.0,0.0008998]
[1725086808965,2.65881661,59413.0,59412.0,0.0008998]
[1725086809187,2.64881661,59413.0,59412.0,0.0008998]
[1725086809425,2.67681661,59413.0,59412.0,0.0008998]
[1725086809649,2.66281661,59413.0,59412.0,0.0008998]
[1725086809885,2.64881661,59413.0,59412.0,0.0008998]
[1725086810111,2.66281661,59413.0,59412.0,0.0008998]
[1725086810340,2.67681661,59413.0,59412.0,0.0008998]
[1725086818566,2.84235461,59413.0,59412.0,0.0008998]
[1725086820391,2.71953561,59413.0,59412.0,0.0008998]
[1725086820637,2.75075461,59413.0,59412.0,0.0008998]
[1725086820855,2.58220297,59413.0,59412.0,0.0008998]
[1725086831828,3.08220297,59413.0,59412.0,0.0008998]
[1725086834415,3.58220297,59413.0,59412.0,0.0008998]
[1725086836456,3.58302197,59413.0,59412.0,0.0008998]
[1725086840869,3.60064982,59413.0,59412.0,0.0008998]
[1725086841985,3.76920146,59413.0,59412.0,0.0008998]
[1725086842657,3.60064982,59413.0,59412.0,0.0008998]
[1725086845851,3.60064982,59413.0,59404.0,8e-07]
[1725086845852,1.536855,59405.0,59404.0,8e-07]
[1725086846117,1.536855,59405.0,59392.0,0.005]
[1725086846118,0.122843,59401.0,59392.0,0.005]
[1725086846351,1.0047723,59401.0,59392.0,0.005]
[1725086846573,1.50741325,59401.0,59392.0,0.005]
[1725086847022,1.50741325,59401.0,59391.0,0.0743]
[1725086847460,1.52141325,59401.0,59391.0,0.0743]
[1725086847914,1.52141325,59401.0,59391.0,0.0793]
[1725086848593,1.53541325,59401.0,59391.0,0.0793]
[1725086848808,1.52141325,59401.0,59391.0,0.0793]
[1725086849235,1.53541325,59401.0,59391.0,0.0793]
[1725086849668,1.53541325,59401.0,59391.0,0.0743]
[1725086849898,1.54041325,59401.0,59391.0,0.0743]
[1725086853235,1.56505913,59401.0,59391.0,0.0743]
[1725086853461,1.80074513,59401.0,59391.0,0.0743]
[1725086855013,1.78674513,59401.0,59391.0,0.0743]
[1725086855252,1.77274513,59401.0,59391.0,0.0743]
[1725086855474,2.65151275,59401.0,59391.0,0.0743]
[1725086855690,2.51466975,59401.0,59391.0,0.0743]
[1725086856113,2.6641406,59401.0,59391.0,0.0743]
[1725086856345,2.6641406,59401.0,59399.0,0.081]
[1725086857231,2.6501406,59401.0,59399.0,0.081]
[1725086857687,1.301295,59400.0,59399.0,0.07311986]
[1725086857904,1.59284664,59400.0,59399.0,0.07311986]
[1725086858118,1.59769347,59400.0,59399.0,0.07311986]
[1725086858927,1.61169347,59400.0,59399.0,0.07311986]
[1725086859620,1.62569347,59400.0,59399.0,0.07311986]
[1725086861430,2.47646109,59400.0,59399.0,0.07311986]
[1725086865808,2.47646109,59400.0,59389.0,0.1005998]
[1725086865809,1.296339,59398.0,59389.0,0.1005998]
[1725086866043,1.424339,59398.0,59389.0,0.0818998]
[1725086866255,0.825051,59390.0,59389.0,0.0818998]
[1725086866480,1.18378,59390.0,59389.0,0.0818998]
[1725086866702,1.18890044,59390.0,59389.0,0.0818998]
[1725086867138,1.2153258,59390.0,59389.0,0.0818998]
[1725086867603,1.33685838,59390.0,59389.0,0.0818998]
[1725086868109,1.57258738,59390.0,59389.0,0.0818998]
[1725086869237,1.58258738,59390.0,59389.0,0.0818998]
[1725086869466,1.59058738,59390.0,59389.0,0.0818998]
[1725086870381,2.441355,59390.0,59389.0,0.0818998]
[1725086871578,2.48354575,59390.0,59389.0,0.0818998]
[1725086874774,2.47554575,59390.0,59389.0,0.0818998]
[1725086874998,2.48554575,59390.0,59389.0,0.0818998]
[1725086875223,2.47554575,59390.0,59389.0,0.0818998]
[1725086875493,2.46554575,59390.0,59389.0,0.0818998]
[1725086875689,2.48854575,59390.0,59389.0,0.0818998]
[1725086880552,2.13128417,59390.0,59389.0,0.0818998]
[1725086880793,2.13128417,59390.0,59389.0,0.1760998]
[1725086882141,1.28051655,59390.0,59389.0,0.1760998]
[1725086886901,1.04478755,59390.0,59389.0,0.1760998]
[1725086887118,1.04478755,59390.0,59389.0,0.1810998]
[1725086887757,1.03478755,59390.0,59389.0,0.1810998]
[1725086888181,1.03878755,59390.0,59389.0,0.1810998]
[1725086888393,1.02578755,59390.0,59389.0,0.1810998]
[1725086888818,1.03178755,59390.0,59389.0,0.1810998]
[1725086891769,1.13496631,59390.0,59389.0,0.1760998]
[1725086892422,1.03178755,59390.0,59389.0,0.1760998]
[1725086893732,1.26751655,59390.0,59389.0,0.1760998]
[1725086893966,1.03178755,59390.0,59389.0,0.1760998]
[1725086897597,1.03178755,59390.0,59389.0,0.1780998]
[1725086900222,1.53178755,59390.0,59389.0,0.1780998]
[1725086901076,1.68496631,59390.0,59389.0,0.1780998]
[1725086903030,1.68496631,59390.0,59389.0,0.1760998]
[1725086904302,1.68496631,59390.0,59389.0,0.1780998]
[1725086904519,1.53178755,59390.0,59389.0,0.1780998]
[1725086910796,1.53178755,59390.0,59389.0,0.1760998]
[1725086912791,1.76751655,59390.0,59389.0,0.0008998]
[1725086913009,1.41392355,59390.0,59389.0,0.0008998]
[1725086913234,1.53178755,59390.0,59389.0,0.0008998]
[1725086913453,1.76751655,59390.0,59389.0,0.0008998]
[1725086913673,1.76351655,59390.0,59389.0,0.0008998]
[1725086914104,1.77151655,59390.0,59389.0,0.0008998]
[1725086914549,1.76551655,59390.0,59389.0,0.0008998]
[1725086915474,1.76651655,59390.0,59389.0,0.0008998]
[1725086915912,1.77451655,59390.0,59389.0,0.0008998]
[1725086917558,1.94306819,59390.0,59389.0,0.0008998]
[1725086918202,1.77451655,59390.0,59389.0,0.0008998]
[1725086918839,2.01024555,59390.0,59389.0,0.0008998]
[1725086919705,2.00224555,59390.0,59389.0,0.0008998]
[1725086919915,2.01224555,59390.0,59389.0,0.0008998]
[1725086920368,2.00224555,59390.0,59389.0,0.0008998]
[1725086920604,2.00306455,59390.0,59389.0,0.0008998]
[1725086921039,1.99406455,59390.0,59389.0,0.0008998]
[1725086921541,2.00806455,59390.0,59389.0,0.0008998]
[1725086921760,2.02106455,59390.0,59389.0,0.0008998]
[1725086922187,1.060942,59381.0,59380.0,0.0741998]
[1725086922412,1.183942,59381.0,59380.0,0.0741998]
[1725086922624,1.18896636,59381.0,59380.0,0.0741998]
[1725086922841,1.21539374,59381.0,59380.0,0.0741998]
[1725086923478,1.21839374,59381.0,59380.0,0.0741998]
[1725086924354,1.22239374,59381.0,59380.0,0.0741998]
[1725086925410,1.34463311,59381.0,59380.0,0.0741998]